fUSD/lending_fUSD_20240712
["ID","MTS","AMOUNT","RATE_DAILY","PERIOD"]
[331837270,1720787432203,-200.0,0.00011923,2]
[331837271,1720787432213,-382.48,0.00011996,2]
[331837272,1720787432223,-200.0,0.00012042,2]
[331837273,1720787432232,-171.36,0.00012053,2]
[331837274,1720787432242,-1068.44,0.00012158,2]
[331837275,1720787432252,-999.99,0.00012158,2]
[331837276,1720787432266,-438.28,0.00012164,2]
[331837277,1720787432275,-268.99,0.00012224,2]
[331837278,1720787432284,-499.08411014,0.0001226,2]
[331837279,1720787432293,-379.41942366,0.00012273,2]
[331837280,1720787432303,-155.0,0.00012273,2]
[331837281,1720787432313,-245.55,0.00012298,2]
[331837282,1720787432322,-297.2123331,0.00012314,2]
[331837283,1720787432332,-200.0,0.00012354,2]
[331837284,1720787432343,-168.23,0.00012649,2]
[331837285,1720787432352,-173.45,0.00012687,2]
[331837286,1720787432362,-576.47,0.00012741,2]
[331837287,1720787432372,-838.9,0.00012741,2]
[331837288,1720787432381,-1000.0,0.00012881,2]
[331837289,1720787432391,-165.05,0.00012986,2]
[331837290,1720787432400,-165.05,0.00012986,2]
[331837291,1720787432410,-355.25,0.00012986,2]
[331837292,1720787432419,-165.05,0.00012986,2]
[331837293,1720787432429,-355.25,0.00012986,2]
[331837294,1720787432438,-355.25,0.00012986,2]
[331837295,1720787432448,-165.05,0.00012986,2]
[331837296,1720787432457,-152.42,0.00012986,2]
[331837297,1720787432467,-355.25,0.00012986,2]
[331837298,1720787432476,-355.25,0.00012986,2]
[331837299,1720787432486,-9788.3580001,0.00013,2]
[331837300,1720787432495,-358.78684232,0.00013128,2]
[331837301,1720787432504,-304.62275169,0.00013128,2]
[331837302,1720787432519,-410.2183359,0.00013128,2]
[331837303,1720787432528,-175.08289325,0.00013128,2]
[331837304,1720787432537,-154.3,0.00013186,2]
[331837305,1720787432547,-152.3647633,0.00013197,2]
[331837306,1720787432556,-220.51,0.00013205,2]
[331837307,1720787432565,-51184.5667,0.00013207,2]
[331837308,1720787432575,-200.0,0.000133,4]
[331837309,1720787432584,-39477.9832,0.00013307,2]
[331837310,1720787432593,-179241.5429,0.00013307,2]
[331837311,1720787432603,-500.0,0.000134,4]
[331837312,1720787432613,-1006.58928395,0.00013424,2]
[331837313,1720787432622,-1029.72741859,0.00013424,2]
[331837314,1720787432638,-1042.99840669,0.00013424,2]
[331837315,1720787432647,-2376.51629851,0.00013472,2]
[331837316,1720787432657,-518.04242089,0.00013472,2]
[331837317,1720787432666,-482.17106174,0.00013472,2]
[331837318,1720787432676,-883.0,0.00013497,2]
[331837319,1720787432686,-188.42196949,0.00013498,2]
[331837320,1720787432696,-434.27192196,0.00013498,2]
[331837321,1720787432706,-700.0,0.000135,4]
[331837322,1720787432716,-155.24099466,0.00013516,2]
[331837323,1720787432725,-553.58196334,0.00013516,2]
[331837324,1720787432735,-623.83746842,0.00013516,2]
[331837325,1720787432745,-155.43704552,0.00013516,2]
[331837326,1720787432755,-165.69128862,0.00013516,2]
[331837327,1720787432769,-159.1434954,0.00013516,2]
[331837328,1720787432778,-155.43704552,0.00013516,2]
[331837329,1720787432788,-427.06802,0.0001356,2]
[331837330,1720787432797,-155.0,0.00013574,2]
[331837331,1720787432806,-313.92669703,0.00013574,2]
[331837332,1720787432816,-18797.64158307,0.00013574,2]
[331837333,1720787432825,-300.70090678,0.00013574,2]
[331837334,1720787432835,-41520.26025627,0.00013574,2]
[331837335,1720787432845,-367.63273531,0.00013574,2]
[331837336,1720787432859,-183.11191959,0.00013574,2]
[331837337,1720787432868,-12177.07524223,0.0001358,2]
[331837338,1720787432881,-13111.38324138,0.0001358,2]
[331837339,1720787432893,-39228.17608462,0.0001358,2]
[331837340,1720787432920,-3088.5955,0.0001358,2]
[331837341,1720787432934,-2589.02150942,0.0001358,2]
[331837342,1720787432958,-21189.90100263,0.0001358,2]
[331837343,1720787433046,-13506.81000002,0.0001358,2]
[331837344,1720787433061,-329.14260328,0.0001358,2]
[331837362,1720787437496,-500.0,0.0001226,2]
[331837363,1720787437505,-1012.75792132,0.0001347,2]
[331837364,1720787437524,-653.24207868,0.0001347,2]
[331837365,1720787437533,-227.32181018,0.00013574,2]
[331837366,1720787437542,-188.33475335,0.0001358,2]
[331837367,1720787437568,-427.27532441,0.0001358,2]
[331837368,1720787437581,-1296.86729217,0.0001358,2]
[331837369,1720787437590,-808.06897367,0.00013598,2]
[331837370,1720787437986,-333.49437701,0.00013598,2]
[331837372,1720787439464,-3512.67903515,0.00013598,2]
[331837373,1720787439475,-2310.06028183,0.00013598,2]
[331837374,1720787439487,-843.4,0.00013598,2]
[331837375,1720787439708,-3249.95340702,0.00013598,2]
[331837376,1720787439737,-567.7,0.0001347,2]
[331837377,1720787439747,-401.95529697,0.00013598,2]
[331837378,1720787439759,-669.31075527,0.00013598,2]
[331837379,1720787439869,-417.81286233,0.00013598,2]
[331837380,1720787439880,-45456.13441075,0.00013598,2]
[331837381,1720787439890,-1000.0,0.000136,2]
[331837382,1720787439900,-813.0,0.000136,2]
[331837383,1720787439909,-356.0,0.000136,2]
[331837384,1720787439921,-1000.0,0.000136,4]
[331837385,1720787439931,-3777.6257849,0.00013691,2]
[331837386,1720787439940,-38873.4185733,0.00013691,2]
[331837387,1720787439949,-1482.8686091,0.00013691,2]
[331837388,1720787439958,-578.72437406,0.00013695,2]
[331837389,1720787439968,-155.0,0.00013698,2]
[331837390,1720787439978,-200.63915266,0.00013698,2]
[331837391,1720787439987,-500.0,0.00013698,2]
[331837392,1720787439996,-500.0,0.00013698,2]
[331837393,1720787440006,-500.0,0.00013698,2]
[331837394,1720787440021,-2000.0,0.00013698,2]
[331837395,1720787440030,-575.28,0.00013698,2]
[331837396,1720787440039,-500.0,0.00013698,2]
[331837397,1720787440048,-200.0,0.00013698,2]
[331837398,1720787440058,-500.0,0.00013698,2]
[331837399,1720787440069,-520.83,0.00013698,2]
[331837400,1720787440078,-500.0,0.00013698,2]
[331837401,1720787440088,-500.0,0.00013698,2]
[331837402,1720787440099,-500.0,0.00013698,2]
[331837403,1720787440108,-500.0,0.00013698,2]
[331837404,1720787440117,-500.0,0.00013698,2]
[331837405,1720787440126,-458.18381555,0.00013698,2]
[331837406,1720787440135,-626.74,0.00013698,2]
[331837407,1720787440145,-657.81,0.00013698,2]
[331837408,1720787440154,-500.0,0.00013698,2]
[331837409,1720787440163,-500.0,0.00013698,2]
[331837410,1720787440173,-584.71,0.00013698,2]
[331837411,1720787440182,-500.0,0.00013698,2]
[331837412,1720787440191,-500.0,0.00013698,2]
[331837413,1720787440202,-500.0,0.00013698,2]
[331837414,1720787440211,-500.0,0.00013698,2]
[331837415,1720787440220,-558.39,0.00013698,2]
[331837416,1720787440230,-500.0,0.00013698,2]
[331837417,1720787440239,-500.0,0.00013698,2]
[331837418,1720787440248,-500.0,0.00013698,2]
[331837419,1720787440258,-609.9,0.00013698,2]
[331837420,1720787440277,-500.0,0.00013698,2]
[331837421,1720787440286,-500.0,0.00013698,2]
[331837422,1720787440296,-500.0,0.00013698,2]
[331837423,1720787440306,-500.0,0.00013698,2]
[331837424,1720787440315,-500.0,0.00013698,2]
[331837425,1720787440324,-500.0,0.00013698,2]
[331837426,1720787440334,-500.0,0.00013698,2]
[331837427,1720787440343,-500.0,0.00013698,2]
[331837428,1720787440352,-561.23,0.00013698,2]
[331837429,1720787440361,-500.0,0.00013698,2]
[331837430,1720787440371,-500.0,0.00013698,2]
[331837431,1720787440380,-500.0,0.00013698,2]
[331837432,1720787440389,-500.0,0.00013698,2]
[331837433,1720787440398,-500.0,0.00013698,2]
[331837434,1720787440408,-500.0,0.00013698,2]
[331837435,1720787440417,-500.0,0.00013698,2]
[331837436,1720787440426,-500.0,0.00013698,2]
[331837437,1720787440436,-500.0,0.00013698,2]
[331837438,1720787440444,-630.83,0.00013698,2]
[331837439,1720787440454,-500.0,0.00013698,2]
[331837440,1720787440463,-500.0,0.00013698,2]
[331837441,1720787440472,-500.0,0.00013698,2]
[331837442,1720787440481,-500.0,0.00013698,2]
[331837443,1720787440490,-500.0,0.00013698,2]
[331837444,1720787440500,-701.44,0.00013698,2]
[331837445,1720787440509,-500.0,0.00013698,2]
[331837446,1720787440524,-500.0,0.00013698,2]
[331837447,1720787440533,-500.0,0.00013698,2]
[331837448,1720787440542,-500.0,0.00013698,2]
[331837449,1720787440552,-500.0,0.00013698,2]
[331837450,1720787440562,-548.66,0.00013698,2]
[331837451,1720787440571,-810.43,0.00013698,2]
[331837452,1720787440581,-500.0,0.00013698,2]
[331837453,1720787440590,-500.0,0.00013698,2]
[331837454,1720787440599,-500.0,0.00013698,2]
[331837455,1720787440616,-643.71,0.00013698,2]
[331837456,1720787440627,-500.0,0.00013698,2]
[331837457,1720787440638,-500.0,0.00013698,2]
[331837458,1720787440648,-500.0,0.00013698,2]
[331837459,1720787440658,-500.0,0.00013698,2]
[331837460,1720787440668,-500.0,0.00013698,2]
[331837461,1720787440677,-245.50901526,0.00013698,2]
[331837462,1720787440687,-500.0,0.00013698,2]
[331837463,1720787440696,-500.0,0.00013698,2]
[331837464,1720787440706,-500.0,0.00013698,2]
[331837465,1720787440717,-500.0,0.00013698,2]
[331837466,1720787440727,-500.0,0.00013698,2]
[331837467,1720787440737,-500.0,0.00013698,2]
[331837468,1720787440746,-500.0,0.00013698,2]
[331837469,1720787440756,-500.0,0.00013698,2]
[331837470,1720787440768,-549.64,0.00013698,2]
[331837471,1720787440777,-215.572956,0.00013698,2]
[331837472,1720787440787,-500.0,0.00013698,2]
[331837473,1720787440796,-500.0,0.00013698,2]
[331837474,1720787440806,-500.0,0.00013698,2]
[331837475,1720787440816,-500.0,0.00013698,2]
[331837476,1720787440825,-500.0,0.00013698,2]
[331837477,1720787440836,-151.0,0.00013698,2]
[331837478,1720787440846,-500.0,0.00013698,2]
[331837479,1720787440859,-151.0,0.00013698,2]
[331837480,1720787440869,-151.0,0.00013698,2]
[331837481,1720787440880,-151.0,0.00013698,2]
[331837482,1720787440890,-898.15,0.00013698,2]
[331837483,1720787440899,-496.65424846,0.00013698,2]
[331837484,1720787440909,-500.0,0.00013698,2]
[331837485,1720787440918,-500.0,0.00013698,2]
[331837486,1720787440929,-500.0,0.00013698,2]
[331837487,1720787440939,-500.0,0.00013698,2]
[331837488,1720787440949,-500.0,0.00013698,2]
[331837489,1720787440958,-151.0,0.00013698,2]
[331837490,1720787440968,-500.0,0.00013698,2]
[331837491,1720787440977,-500.0,0.00013698,2]
[331837492,1720787440986,-151.0,0.00013698,2]
[331837493,1720787440996,-701.65,0.00013698,2]
[331837494,1720787441006,-500.0,0.00013698,2]
[331837495,1720787441018,-500.0,0.00013698,2]
[331837496,1720787441027,-500.0,0.00013698,2]
[331837497,1720787441036,-500.0,0.00013698,2]
[331837498,1720787441046,-500.0,0.00013698,2]
[331837499,1720787441055,-500.0,0.00013698,2]
[331837500,1720787441065,-500.0,0.00013698,2]
[331837501,1720787441074,-500.0,0.00013698,2]
[331837502,1720787441083,-500.0,0.00013698,2]
[331837503,1720787441093,-500.0,0.00013698,2]
[331837504,1720787441102,-55.52726759,0.00013698,2]
[331837505,1720787441954,-444.47273241,0.00013698,2]
[331837506,1720787441964,-500.0,0.00013698,2]
[331837507,1720787441973,-500.0,0.00013698,2]
[331837508,1720787441982,-791.16,0.00013698,2]
[331837509,1720787441991,-312.39587298,0.00013698,2]
[331837510,1720787442001,-327.7961711,0.00013698,2]
[331837542,1720787443218,-172.2038289,0.00013698,2]
[331837543,1720787443228,-500.0,0.00013698,2]
[331837544,1720787443238,-518.57,0.00013698,2]
[331837545,1720787443248,-516.65,0.00013698,2]
[331837546,1720787443258,-65.64403326,0.00013698,2]
[331837547,1720787443273,-376.16154095,0.00013698,2]
[331837548,1720787443308,-105.07442579,0.00013698,2]
[331837549,1720787443318,-437.05565699,0.00013698,2]
[331837550,1720787444878,-62.94434301,0.00013698,2]
[331837551,1720787444889,-151.0,0.00013698,2]
[331837552,1720787444900,-151.0,0.00013698,2]
[331837553,1720787444910,-500.0,0.00013698,2]
[331837554,1720787444919,-500.0,0.00013698,2]
[331837555,1720787444930,-500.0,0.00013698,2]
[331837556,1720787444940,-500.0,0.00013698,2]
[331837557,1720787444950,-500.0,0.00013698,2]
[331837558,1720787444960,-500.0,0.00013698,2]
[331837559,1720787444969,-500.0,0.00013698,2]
[331837560,1720787444980,-500.0,0.00013698,2]
[331837561,1720787444990,-454.59069362,0.00013698,2]
[331837562,1720787444999,-751.2,0.00013698,2]
[331837563,1720787445008,-500.0,0.00013698,2]
[331837564,1720787445023,-500.0,0.00013698,2]
[331837565,1720787445033,-565.62,0.00013698,2]
[331837566,1720787445043,-911.15,0.00013698,2]
[331837567,1720787445053,-500.0,0.00013698,2]
[331837568,1720787445062,-500.0,0.00013698,2]
[331837569,1720787445072,-500.0,0.00013698,2]
[331837570,1720787445082,-500.0,0.00013698,2]
[331837571,1720787445092,-500.0,0.00013698,2]
[331837572,1720787445101,-500.0,0.00013698,2]
[331837573,1720787445111,-500.0,0.00013698,2]
[331837574,1720787445122,-500.0,0.00013698,2]
[331837575,1720787445131,-1073.8,0.00013698,2]
[331837576,1720787445141,-520.87,0.00013698,2]
[331837577,1720787445151,-500.0,0.00013698,2]
[331837578,1720787445161,-151.0,0.00013698,2]
[331837579,1720787445171,-500.0,0.00013698,2]
[331837580,1720787445181,-781.98,0.00013698,2]
[331837581,1720787445191,-500.0,0.00013698,2]
[331837582,1720787445200,-486.9941454,0.00013698,2]
[331837583,1720787445210,-151.0,0.00013698,2]
[331837584,1720787445220,-151.0,0.00013698,2]
[331837585,1720787445230,-500.0,0.00013698,2]
[331837586,1720787445239,-151.0,0.00013698,2]
[331837587,1720787445249,-151.0,0.00013698,2]
[331837588,1720787445259,-561.89,0.00013698,2]
[331837589,1720787445271,-500.0,0.00013698,2]
[331837590,1720787445281,-580.45,0.00013698,2]
[331837592,1720787445290,-500.0,0.00013698,2]
[331837593,1720787445299,-500.0,0.00013698,2]
[331837595,1720787445308,-627.54,0.00013698,2]
[331837597,1720787445318,-500.0,0.00013698,2]
[331837598,1720787445327,-500.0,0.00013698,2]
[331837599,1720787445337,-500.0,0.00013698,2]
[331837601,1720787445347,-500.0,0.00013698,2]
[331837603,1720787445357,-500.0,0.00013698,2]
[331837605,1720787445366,-500.0,0.00013698,2]
[331837607,1720787445376,-500.0,0.00013698,2]
[331837608,1720787445385,-500.0,0.00013698,2]
[331837609,1720787445394,-636.66,0.00013698,2]
[331837610,1720787445404,-500.0,0.00013698,2]
[331837612,1720787445414,-500.0,0.00013698,2]
[331837613,1720787445425,-576.32,0.00013698,2]
[331837614,1720787445435,-500.0,0.00013698,2]
[331837615,1720787445445,-500.0,0.00013698,2]
[331837616,1720787445454,-500.0,0.00013698,2]
[331837617,1720787445464,-500.0,0.00013698,2]
[331837618,1720787445473,-500.0,0.00013698,2]
[331837619,1720787445483,-151.0,0.00013698,2]
[331837620,1720787445492,-151.0,0.00013698,2]
[331837621,1720787445502,-500.0,0.00013698,2]
[331837622,1720787445511,-500.0,0.00013698,2]
[331837623,1720787445525,-500.0,0.00013698,2]
[331837624,1720787445534,-500.0,0.00013698,2]
[331837625,1720787445544,-500.0,0.00013698,2]
[331837626,1720787445554,-659.45,0.00013698,2]
[331837627,1720787445564,-500.0,0.00013698,2]
[331837628,1720787445573,-500.0,0.00013698,2]
[331837629,1720787445582,-638.68,0.00013698,2]
[331837630,1720787445591,-500.0,0.00013698,2]
[331837631,1720787445600,-500.0,0.00013698,2]
[331837632,1720787445610,-511.19,0.00013698,2]
[331837633,1720787445619,-500.0,0.00013698,2]
[331837634,1720787445628,-709.14,0.00013698,2]
[331837635,1720787445637,-500.0,0.00013698,2]
[331837636,1720787445646,-500.0,0.00013698,2]
[331837637,1720787445656,-500.0,0.00013698,2]
[331837638,1720787445665,-548.6,0.00013698,2]
[331837639,1720787445675,-800.3,0.00013698,2]
[331837640,1720787445684,-500.0,0.00013698,2]
[331837641,1720787445693,-500.0,0.00013698,2]
[331837642,1720787445702,-1162.7,0.00013698,2]
[331837643,1720787445711,-500.0,0.00013698,2]
[331837644,1720787445721,-500.0,0.00013698,2]
[331837645,1720787445731,-500.0,0.00013698,2]
[331837646,1720787445741,-2000.0,0.00013698,2]
[331837647,1720787445751,-531.37,0.00013698,2]
[331837648,1720787445760,-354.81794395,0.00013698,2]
[331837649,1720787445775,-590.02,0.00013698,2]
[331837650,1720787445784,-200.0,0.00013698,2]
[331837651,1720787445794,-500.0,0.00013698,2]
[331837652,1720787445803,-602.49,0.00013698,2]
[331837653,1720787445813,-500.0,0.00013698,2]
[331837654,1720787445822,-692.74,0.00013698,2]
[331837655,1720787445831,-661.89,0.00013698,2]
[331837656,1720787445841,-500.0,0.00013698,2]
[331837657,1720787445853,-151.329121,0.00013698,2]
[331837658,1720787445862,-172.708935,0.00013698,2]
[331837659,1720787445872,-1399.5,0.00013698,2]
[331837660,1720787445881,-500.0,0.00013698,2]
[331837661,1720787445890,-500.0,0.00013698,2]
[331837662,1720787445900,-500.0,0.00013698,2]
[331837663,1720787445909,-500.0,0.00013698,2]
[331837664,1720787445919,-500.0,0.00013698,2]
[331837665,1720787445929,-500.0,0.00013698,2]
[331837666,1720787445939,-500.0,0.00013698,2]
[331837667,1720787445948,-500.0,0.00013698,2]
[331837668,1720787445957,-500.0,0.00013698,2]
[331837669,1720787445967,-1333.51129296,0.00013698,2]
[331837670,1720787445986,-11.56870704,0.00013698,2]
[331837671,1720787445996,-242.31278377,0.00013698,2]
[331837672,1720787446025,-277.72721623,0.00013698,2]
[331837673,1720787446035,-151.0,0.00013698,2]
[331837674,1720787446045,-151.0,0.00013698,2]
[331837675,1720787446054,-500.0,0.00013698,2]
[331837677,1720787446063,-151.0,0.00013698,2]
[331837679,1720787446075,-151.0,0.00013698,2]
[331837680,1720787446084,-500.0,0.00013698,2]
[331837682,1720787446095,-500.0,0.00013698,2]
[331837684,1720787446104,-151.0,0.00013698,2]
[331837685,1720787446114,-151.0,0.00013698,2]
[331837686,1720787446124,-500.0,0.00013698,2]
[331837687,1720787446133,-151.0,0.00013698,2]
[331837688,1720787446142,-500.0,0.00013698,2]
[331837689,1720787446152,-137.37207661,0.00013698,2]
[331837690,1720787446164,-362.62792339,0.00013698,2]
[331837691,1720787446174,-386.99207661,0.00013698,2]
[331837692,1720787446186,-113.00792339,0.00013698,2]
[331837693,1720787446196,-546.9920766,0.00013698,2]
[331837694,1720787446208,-28.4779234,0.00013698,2]
[331837695,1720787446218,-500.0,0.00013698,2]
[331837696,1720787446228,-500.0,0.00013698,2]
[331837697,1720787446238,-500.0,0.00013698,2]
[331837698,1720787446248,-151.0,0.00013698,2]
[331837699,1720787446257,-500.0,0.00013698,2]
[331837700,1720787446267,-500.0,0.00013698,2]
[331837701,1720787446285,-840.91,0.00013698,2]
[331837702,1720787446294,-500.0,0.00013698,2]
[331837703,1720787446303,-500.0,0.00013698,2]
[331837704,1720787446312,-75.0029843,0.00013698,2]
[331837705,1720787446324,-595.2770157,0.00013698,2]
[331837706,1720787446333,-500.0,0.00013698,2]
[331837707,1720787446342,-500.0,0.00013698,2]
[331837708,1720787446351,-151.0,0.00013698,2]
[331837709,1720787446361,-500.0,0.00013698,2]
[331837710,1720787446371,-600.49,0.00013698,2]
[331837711,1720787446380,-917.6,0.00013698,2]
[331837712,1720787446391,-500.0,0.00013698,2]
[331837713,1720787446400,-500.0,0.00013698,2]
[331837714,1720787446410,-500.0,0.00013698,2]
[331837715,1720787446420,-500.0,0.00013698,2]
[331837716,1720787446430,-500.0,0.00013698,2]
[331837717,1720787446440,-500.0,0.00013698,2]
[331837718,1720787446449,-151.0,0.00013698,2]
[331837719,1720787446458,-218.059036,0.00013698,2]
[331837720,1720787446468,-501.90329711,0.00013698,2]
[331837721,1720787446479,-763.26,0.00013698,2]
[331837722,1720787446488,-547.2,0.00013698,2]
[331837723,1720787446498,-648.58,0.00013698,2]
[331837724,1720787446507,-500.0,0.00013698,2]
[331837725,1720787446523,-609.82,0.00013698,2]
[331837726,1720787446534,-500.0,0.00013698,2]
[331837727,1720787446543,-500.0,0.00013698,2]
[331837728,1720787446553,-500.0,0.00013698,2]
[331837729,1720787446562,-500.90663698,0.00013698,2]
[331837730,1720787447303,-7356.77111923,0.0001347,2]
[331837731,1720787447612,-2141.14499187,0.0001347,2]
[331837732,1720787447658,-1440.675,0.0001347,2]
[331837733,1720787447678,-695.724,0.0001347,2]
[331837734,1720787447690,-2042.76934525,0.0001347,2]
[331837735,1720787478229,366.03385481,0.00011199,2]
[331837736,1720787479506,1290.09905495,0.00011199,2]
[331837737,1720787646300,402.51,0.00010764,2]
[331837738,1720787649260,6945.87905905,0.00011199,2]
[331837739,1720787662895,155.0,0.00011199,2]
[331837740,1720787716375,2376.51629851,0.00011199,2]
[331837741,1720787770784,946.77435976,0.00011199,2]
[331837742,1720787868225,150.0,0.00011199,2]
[331837743,1720787868246,211.07736391,0.00011199,2]
[331837744,1720787868272,158.67292577,0.00011199,2]
[331837745,1720787873349,155.57608458,0.00011199,2]
[331837746,1720787877241,202.8209654,0.00011199,2]
[331837747,1720787890901,624.74864981,0.00011199,2]
[331837748,1720787892958,210.02763994,0.00011199,2]
[331837749,1720787905714,352.31565129,0.00011199,2]
[331837750,1720787906613,155.0,0.00011199,2]
[331837751,1720787906854,366.58364766,0.00011199,2]
[331837752,1720787914486,379.41942366,0.00011199,2]
[331837753,1720787921225,205.58920191,0.00011199,2]
[331837754,1720787953225,364.41692002,0.00011199,2]
[331837755,1720787956276,1016.47627032,0.00011199,2]
[331837756,1720787963652,1050.0,0.00011199,2]
[331837757,1720787966956,600.0,0.00011199,2]
[331837758,1720787978837,358.78684232,0.00011199,2]
[331837759,1720788014316,155.0,0.00011199,2]
[331837760,1720788026922,220.55903591,0.00011199,2]
[331837761,1720788097753,150.0,0.00011199,2]
[331837762,1720788097774,5.08707796,0.00011199,2]
[331837763,1720788098351,225.94900981,0.00011199,2]
[331837764,1720788187826,50.62572336,0.00011199,2]
[331837765,1720788187850,104.70056505,0.00011199,2]
[331837766,1720788215590,266.65269952,0.00011199,2]
[331837767,1720788233833,163.32849176,0.00011199,2]
[331837768,1720788244395,401.2005,0.00011199,2]
[331837770,1720788273502,661.47545687,0.00011199,2]
[331837771,1720788274020,403.0586708,0.00011199,2]
[331837772,1720788309345,155.0,0.00011199,2]
[331837773,1720788310392,155.0,0.00011199,2]
[331837774,1720788336031,155.1014532,0.00011199,2]
[331837775,1720788342399,361.07736391,0.00011199,2]
[331837777,1720788369750,205.34037603,0.00011199,2]
[331837778,1720788374652,406.75,0.00010242,2]
[331837779,1720788399496,226.33246078,0.00011199,2]
[331837780,1720788407042,10008.77874029,0.00012,7]
[331837781,1720788416696,164.3024188,0.00011199,2]
[331837783,1720788451797,423.89007925,0.00011199,2]
[331837785,1720788458990,9701.98543864,0.00011199,2]
[331837787,1720788533242,436.43793814,0.00011199,2]
[331837788,1720788537424,155.0,0.00011199,2]
[331837789,1720788567385,-4852.95655966,0.00011372,2]
[331837801,1720788631699,-54.75289205,0.00011372,2]
[331837802,1720788631709,-763.44193116,0.00012207,2]
[331837803,1720788631758,-726.26806884,0.00012207,2]
[331837804,1720788631770,-394.57,0.00012208,2]
[331837805,1720788631779,-226.03286988,0.00012209,2]
[331837806,1720788631819,-273.96713012,0.00012209,2]
[331837807,1720788631828,-250.0,0.00012219,2]
[331837808,1720788631837,-182.14318421,0.0001226,2]
[331837809,1720788631882,-345.73604242,0.0001226,2]
[331837810,1720788631892,-600.0,0.00012267,2]
[331837811,1720788631903,-2326.21,0.00012271,2]
[331837812,1720788631914,-212.07972375,0.00012273,2]
[331837813,1720788631926,-269.4665073,0.00012273,2]
[331837814,1720788631936,-150.0,0.00012274,2]
[331837815,1720788631947,-155.15311958,0.00012302,2]
[331837816,1720788631957,-358.78684232,0.00012302,2]
[331837817,1720788631968,-367.39371836,0.00012302,2]
[331837818,1720788631977,-155.76408255,0.00012314,2]
[331837819,1720788631987,-300.0,0.00012354,2]
[331837820,1720788631996,-368.11,0.00012355,2]
[331837821,1720788632006,-406.75,0.00012506,2]
[331837822,1720788632016,-400.0,0.000126,2]
[331837823,1720788632026,-499.99,0.00012661,2]
[331837824,1720788632036,-267.42,0.00012666,2]
[331837825,1720788632045,-54.20508143,0.00012761,2]
[331837826,1720788632057,-114.02491857,0.00012761,2]
[331837827,1720788632067,-309.07,0.000128,2]
[331837828,1720788632076,-335.95,0.000128,2]
[331837829,1720788632085,-283.45508143,0.000128,2]
[331837833,1720788632108,-18.20491857,0.000128,2]
[331837835,1720788632119,-300.93,0.000128,2]
[331837837,1720788632129,-300.93,0.000128,2]
[331837838,1720788632140,-329.88,0.000128,2]
[331837839,1720788632149,-419.54,0.000128,2]
[331837840,1720788632159,-419.54,0.00013125,2]
[331837841,1720788632168,-4551.1404505,0.00013206,2]
[331837842,1720788632178,-22913.56664836,0.00013207,2]
[331837843,1720788632201,-553.5812655,0.00013207,2]
[331837844,1720788632220,-2807.53512977,0.00013207,2]
[331837845,1720788632244,-2278.4134814,0.00013207,2]
[331837870,1720788637667,-371.59143874,0.00013128,2]
[331837871,1720788637741,-4122.98158591,0.00013128,2]
[331837872,1720788637750,-11236.22841443,0.00013207,2]
[331837873,1720788637794,-28738.47118881,0.00013207,2]
[331837874,1720788637806,-3176.7876559,0.00013207,2]
[331837875,1720788637898,-5309.98791583,0.00013207,2]